{"text_format":"3","workbook":"xlsx","n_sheets":1,"sheets":["Planer blagdanskog proračuna"],"not_rendered":{"defined_names":1},"read":"whole","date_system":"1900"}

{"sheet":"Planer blagdanskog proračuna","index":0,"n_rows":37,"n_cols":12,"rows_kept":37,"merged":[[1,1,7,4],[9,1,9,4],[9,8,9,11],[19,1,19,4],[19,8,19,11],[30,1,30,4],[30,8,30,11]]}
[]
[null,"Planer blagdanskog proračuna"]
[]
[{"$nulls":8},"BLAGDANSKI PRORAČUN",null,{"$f":"SUM(Darovi[Proračun],Pakiranje[Proračun],(Putovanja[Proračun],(Obroci[Proračun],(Zabava[Proračun],Razno[Proračun]))))","v":{"v":750,"d":"750.00 kn"}}]
[{"$nulls":8},"STVARNA POTROŠNJA",null,{"$f":"SUM((Darovi[Stvarno],(Pakiranje[Stvarno],(Putovanja[Stvarno],(Obroci[Stvarno],(Zabava[Stvarno],(Razno[Stvarno])))))))","v":{"v":820,"d":"820.00 kn"}}]
[]
[{"$nulls":8},"RAZLIKA (iznad/ispod proračuna)",null,{"$f":"SUM(K4-K5)","v":{"v":-70,"d":"-70.00 kn"}}]
[]
[]
[null,"Darovi",{"$nulls":6},"Blagdanski obroci"]
[null,"Stavka","Proračun","Stvarno","Razlika",{"$nulls":3},"Stavka","Proračun","Stvarno","Razlika"]
[null,"Obitelj",{"v":500,"d":"500.00 kn"},{"v":495,"d":"495.00 kn"},{"$f":"Darovi[[#This Row],[Proračun]]-Darovi[[#This Row],[Stvarno]]","v":{"v":5,"d":"5.00 kn"}},{"$nulls":3},"Namirnice",null,null,{"$f":"Obroci[[#This Row],[Proračun]]-Obroci[[#This Row],[Stvarno]]","v":{"v":0,"d":"0.00 kn"}}]
[null,"Prijatelji",{"v":250,"d":"250.00 kn"},{"v":325,"d":"325.00 kn"},{"$f":"Darovi[[#This Row],[Proračun]]-Darovi[[#This Row],[Stvarno]]","v":{"v":-75,"d":"-75.00 kn"}},{"$nulls":3},"Obredna prolijevanja",null,null,{"$f":"Obroci[[#This Row],[Proračun]]-Obroci[[#This Row],[Stvarno]]","v":{"v":0,"d":"0.00 kn"}}]
[null,"Kolege",null,null,{"$f":"Darovi[[#This Row],[Proračun]]-Darovi[[#This Row],[Stvarno]]","v":{"v":0,"d":"0.00 kn"}},{"$nulls":3},"Ukrasi",null,null,{"$f":"Obroci[[#This Row],[Proračun]]-Obroci[[#This Row],[Stvarno]]","v":{"v":0,"d":"0.00 kn"}}]
[null,"Nastavnici, dadilje, čuvanje djece itd.",null,null,{"$f":"Darovi[[#This Row],[Proračun]]-Darovi[[#This Row],[Stvarno]]","v":{"v":0,"d":"0.00 kn"}},{"$nulls":3},"Ostalo (kartica u zadnjem stupcu ovog retka da biste dodali redak)",null,null,{"$f":"Obroci[[#This Row],[Proračun]]-Obroci[[#This Row],[Stvarno]]","v":{"v":0,"d":"0.00 kn"}}]
[null,"Humanitarne donacije",null,null,{"$f":"Darovi[[#This Row],[Proračun]]-Darovi[[#This Row],[Stvarno]]","v":{"v":0,"d":"0.00 kn"}},{"$nulls":3},"Zbroj",{"$f":"SUBTOTAL(109,Obroci[Proračun])","v":{"v":0,"d":"0.00 kn"}},{"$f":"SUBTOTAL(109,Obroci[Stvarno])","v":{"v":0,"d":"0.00 kn"}},{"$f":"SUBTOTAL(109,Obroci[Razlika])","v":{"v":0,"d":"0.00 kn"}}]
[null,"Ostalo (kartica u zadnjem stupcu ovog retka da biste dodali redak)",null,null,{"$f":"Darovi[[#This Row],[Proračun]]-Darovi[[#This Row],[Stvarno]]","v":{"v":0,"d":"0.00 kn"}}]
[null,"Zbroj",{"$f":"SUBTOTAL(109,Darovi[Proračun])","v":{"v":750,"d":"750.00 kn"}},{"$f":"SUBTOTAL(109,Darovi[Stvarno])","v":{"v":820,"d":"820.00 kn"}},{"$f":"SUBTOTAL(109,Darovi[Razlika])","v":{"v":-70,"d":"-70.00 kn"}}]
[]
[null,"Pakiranje",{"$nulls":6},"Zabava"]
[null,"Stavka","Proračun","Stvarno","Razlika",{"$nulls":3},"Stavka","Proračun","Stvarno","Razlika"]
[null,"Zamatanje poklona",null,null,{"$f":"Pakiranje[[#This Row],[Proračun]]-Pakiranje[[#This Row],[Stvarno]]","v":{"v":0,"d":"0.00 kn"}},{"$nulls":3},"Pomoć na zabavi (barmen, dobavljač hrane, čistači itd.)",null,null,{"$f":"Zabava[[#This Row],[Proračun]]-Zabava[[#This Row],[Stvarno]]","v":{"v":0,"d":"0.00 kn"}}]
[null,"Oznake",null,null,{"$f":"Pakiranje[[#This Row],[Proračun]]-Pakiranje[[#This Row],[Stvarno]]","v":{"v":0,"d":"0.00 kn"}},{"$nulls":3},"Ukrasi",null,null,{"$f":"Zabava[[#This Row],[Proračun]]-Zabava[[#This Row],[Stvarno]]","v":{"v":0,"d":"0.00 kn"}}]
[null,"Potrepštine (vrpca, ljepljiva traka itd.)",null,null,{"$f":"Pakiranje[[#This Row],[Proračun]]-Pakiranje[[#This Row],[Stvarno]]","v":{"v":0,"d":"0.00 kn"}},{"$nulls":3},"Hrana i piće",null,null,{"$f":"Zabava[[#This Row],[Proračun]]-Zabava[[#This Row],[Stvarno]]","v":{"v":0,"d":"0.00 kn"}}]
[null,"Kutije",null,null,{"$f":"Pakiranje[[#This Row],[Proračun]]-Pakiranje[[#This Row],[Stvarno]]","v":{"v":0,"d":"0.00 kn"}},{"$nulls":3},"Odjeća",null,null,{"$f":"Zabava[[#This Row],[Proračun]]-Zabava[[#This Row],[Stvarno]]","v":{"v":0,"d":"0.00 kn"}}]
[null,"Poštarina",null,null,{"$f":"Pakiranje[[#This Row],[Proračun]]-Pakiranje[[#This Row],[Stvarno]]","v":{"v":0,"d":"0.00 kn"}},{"$nulls":3},"Ulaznice",null,null,{"$f":"Zabava[[#This Row],[Proračun]]-Zabava[[#This Row],[Stvarno]]","v":{"v":0,"d":"0.00 kn"}}]
[null,"Ostalo (kartica u zadnjem stupcu ovog retka da biste dodali redak)",null,null,{"$f":"Pakiranje[[#This Row],[Proračun]]-Pakiranje[[#This Row],[Stvarno]]","v":{"v":0,"d":"0.00 kn"}},{"$nulls":3},"Večere u restoranima",null,null,{"$f":"Zabava[[#This Row],[Proračun]]-Zabava[[#This Row],[Stvarno]]","v":{"v":0,"d":"0.00 kn"}}]
[null,"Zbroj",{"$f":"SUBTOTAL(109,Pakiranje[Proračun])","v":{"v":0,"d":"0.00 kn"}},{"$f":"SUBTOTAL(109,Pakiranje[Stvarno])","v":{"v":0,"d":"0.00 kn"}},{"$f":"SUBTOTAL(109,Pakiranje[Razlika])","v":{"v":0,"d":"0.00 kn"}},{"$nulls":3},"Ostalo (kartica u zadnjem stupcu ovog retka da biste dodali redak)",null,null,{"$f":"Zabava[[#This Row],[Proračun]]-Zabava[[#This Row],[Stvarno]]","v":{"v":0,"d":"0.00 kn"}}]
[{"$nulls":8},"Zbroj",{"$f":"SUBTOTAL(109,Zabava[Proračun])","v":{"v":0,"d":"0.00 kn"}},{"$f":"SUBTOTAL(109,Zabava[Stvarno])","v":{"v":0,"d":"0.00 kn"}},{"$f":"SUBTOTAL(109,Zabava[Razlika])","v":{"v":0,"d":"0.00 kn"}}]
[]
[null,"Putovanja",{"$nulls":6},"Razno"]
[null,"Stavka","Proračun","Stvarno","Razlika",{"$nulls":3},"Stavka","Proračun","Stvarno","Razlika"]
[null,"Cijena zrakoplovne karte",null,null,{"$f":"Putovanja[[#This Row],[Proračun]]-Putovanja[[#This Row],[Stvarno]]","v":{"v":0,"d":"0.00 kn"}},{"$nulls":3},"Blagdanske fotografije",null,null,{"$f":"Razno[[#This Row],[Proračun]]-Razno[[#This Row],[Stvarno]]","v":{"v":0,"d":"0.00 kn"}}]
[null,"Smještaj",null,null,{"$f":"Putovanja[[#This Row],[Proračun]]-Putovanja[[#This Row],[Stvarno]]","v":{"v":0,"d":"0.00 kn"}},{"$nulls":3},"Gorivo ",null,null,{"$f":"Razno[[#This Row],[Proračun]]-Razno[[#This Row],[Stvarno]]","v":{"v":0,"d":"0.00 kn"}}]
[null,"Prijevoz",null,null,{"$f":"Putovanja[[#This Row],[Proračun]]-Putovanja[[#This Row],[Stvarno]]","v":{"v":0,"d":"0.00 kn"}},{"$nulls":3},"Ostalo (kartica u zadnjem stupcu ovog retka da biste dodali redak)",null,null,{"$f":"Razno[[#This Row],[Proračun]]-Razno[[#This Row],[Stvarno]]","v":{"v":0,"d":"0.00 kn"}}]
[null,"Ostalo (kartica u zadnjem stupcu ovog retka da biste dodali redak)",null,null,{"$f":"Putovanja[[#This Row],[Proračun]]-Putovanja[[#This Row],[Stvarno]]","v":{"v":0,"d":"0.00 kn"}},{"$nulls":3},"Zbroj",{"$f":"SUBTOTAL(109,Razno[Proračun])","v":{"v":0,"d":"0.00 kn"}},{"$f":"SUBTOTAL(109,Razno[Stvarno])","v":{"v":0,"d":"0.00 kn"}},{"$f":"SUBTOTAL(109,Razno[Razlika])","v":{"v":0,"d":"0.00 kn"}}]
[null,"Zbroj",{"$f":"SUBTOTAL(109,Putovanja[Proračun])","v":{"v":0,"d":"0.00 kn"}},{"$f":"SUBTOTAL(109,Putovanja[Stvarno])","v":{"v":0,"d":"0.00 kn"}},{"$f":"SUBTOTAL(109,Putovanja[Razlika])","v":{"v":0,"d":"0.00 kn"}}]